bitfinex-derivatives/quotes_SOLF0:USTF0_20250909
["timestamp","ask_amount","ask_price","bid_price","bid_amount"]
[1757439568437,0.03032105,214.18,214.17,7.14]
[1757439570644,9.19910862,214.33,214.17,15.49408678]
[1757439570842,7.66,214.32,214.19,11.06614782]
[1757439571138,7.66,214.31,214.2,7.14]
[1757439571334,7.66,214.31,214.21,7.14]
[1757439571939,7.66,214.31,214.24,0.03308826]
[1757439576746,7.66,214.29,214.24,0.03308826]
[1757439579146,3.96793896,214.29,214.24,0.03308826]
[1757439579343,7.66,214.28,214.24,0.03308826]
[1757439580050,3.96793896,214.29,214.24,0.03308826]
[1757439580249,7.66,214.28,214.24,0.03308826]
[1757439580754,7.66,214.28,214.25,7.14]
[1757439581048,7.66,214.28,214.24,0.03308826]
[1757439581049,3.96793896,214.32,214.24,0.03308826]
[1757439581249,7.66,214.3,214.24,0.03308826]
[1757439584652,7.5,214.28,214.24,0.03308826]
[1757439584853,3.96793896,214.29,214.24,0.03308826]
[1757439585344,7.5,214.28,214.24,0.03308826]
[1757439585552,7.5,214.29,214.24,0.03308826]
[1757439587249,3.96793896,214.3,214.24,0.03308826]
[1757439587551,42.16,214.29,214.24,0.03308826]
[1757439587752,42.16,214.29,214.24,7.17308826]
[1757439588052,42.16,214.29,214.24,0.03308826]
[1757439588251,7.5,214.28,214.24,0.03308826]
[1757439588551,7.5,214.29,214.24,0.03308826]
[1757439588849,56.38793896,214.3,214.24,0.03308826]
[1757439589243,7.5,214.29,214.24,0.03308826]
[1757439589443,92.08793896,214.3,214.24,0.03308826]
[1757439589648,7.5,214.29,214.24,0.03308826]
[1757439590048,3.96793896,214.3,214.24,0.03308826]
[1757439590252,7.5,214.29,214.24,0.03308826]
[1757439590453,7.5,214.29,214.25,7.14]
[1757439590650,7.5,214.3,214.25,7.14]
[1757439590849,41.3,214.31,214.25,7.14]
[1757439591046,7.5,214.32,214.25,7.14]
[1757439592652,7.5,214.35,214.25,7.14]
[1757439594162,7.5,214.35,214.27,7.14]
[1757439594862,313.76,214.39,214.3,7.14]
[1757439595460,7.5,214.4,214.3,7.14]
[1757439597163,7.5,214.38,214.3,7.14]
[1757439597460,7.5,214.38,214.27,7.14]
[1757439597664,7.5,214.38,214.32,0.02956323]
[1757439598266,7.5,214.35,214.32,0.02956323]
[1757439599065,119.72793896,214.36,214.32,0.02956323]
[1757439599455,7.5,214.35,214.32,0.02956323]
[1757439599864,119.72793896,214.36,214.32,0.02956323]
[1757439600163,7.5,214.35,214.32,0.02956323]
[1757439600363,119.72793896,214.36,214.32,0.02956323]
[1757439600563,7.5,214.35,214.32,0.02956323]
[1757439601364,3.96793896,214.33,214.32,0.02956323]
[1757439601565,3.96793896,214.33,214.24,7.14]
[1757439601566,11.46793896,214.33,214.2,7.14]
[1757439602961,0.03172643,214.29,214.2,7.14]
[1757439603167,7.53172643,214.29,214.2,7.14]
[1757439604869,0.03172643,214.29,214.2,7.14]
[1757439607162,0.03172643,214.29,214.22,3.96793896]
[1757439607369,0.03172643,214.29,214.23,7.14]
[1757439613170,0.03172643,214.29,214.24,0.03592246]
[1757439613462,0.03172643,214.29,214.25,7.14]
[1757439613665,0.03172643,214.29,214.25,7.46]
[1757439614070,0.03172643,214.29,214.24,0.03592246]
[1757439614269,0.03172643,214.29,214.25,7.46]
[1757439615473,0.03172643,214.29,214.24,0.03592246]
[1757439615668,0.03172643,214.29,214.25,7.46]
[1757439616169,0.03172643,214.29,214.24,0.03592246]
[1757439616367,0.03172643,214.29,214.25,7.46]
[1757439616862,0.03172643,214.29,214.24,0.03592246]
[1757439617265,0.03172643,214.29,214.25,7.46]
[1757439617466,0.03172643,214.29,214.24,0.03592246]
[1757439617872,0.03172643,214.29,214.25,7.46]
[1757439618073,0.03172643,214.29,214.24,0.03592246]
[1757439618272,0.03172643,214.29,214.25,7.46]
[1757439618767,0.03172643,214.29,214.24,0.03592246]
[1757439619164,0.03172643,214.29,214.25,7.46]
[1757439619371,0.03172643,214.29,214.24,0.03592246]
[1757439619566,0.03172643,214.29,214.25,7.46]
[1757439619768,0.03172643,214.29,214.26,7.46]
[1757439621172,0.03172643,214.29,214.24,0.03592246]
[1757439621173,0.03172643,214.29,214.28,11.42793896]
[1757439621378,313.7,214.42,214.28,11.42793896]
[1757439621673,7.59,214.41,214.29,7.46]
[1757439622666,7.59,214.41,214.33,0.03072949]
[1757439626684,11.55793896,214.41,214.33,0.03072949]
[1757439626879,7.59,214.41,214.33,0.03072949]
[1757439630284,2.53611762,214.4,214.33,0.03072949]
[1757439630890,7.59,214.41,214.33,0.03072949]
[1757439631492,7.59,214.39,214.33,0.03072949]
[1757439633287,2.53611762,214.41,214.35,7.46]
[1757439633494,10.12611762,214.45,214.37,7.46]
[1757439633792,10.12611762,214.45,214.39,2.53611762]
[1757439633793,7.59,214.45,214.39,2.53611762]
[1757439634095,7.59,214.45,214.39,2.56562166]
[1757439635390,7.59,214.45,214.39,0.02950404]
[1757439636594,7.59,214.41,214.39,0.02950404]
[1757439637693,7.59,214.45,214.39,2.56562166]
[1757439641900,7.59,214.45,214.41,9.99611762]
[1757439642396,7.59,214.48,214.41,2.53611762]
[1757439643896,7.7,214.46,214.39,0.02950404]
[1757439646196,7.7,214.46,214.4,2.53611762]
[1757439647898,7.7,214.46,214.39,0.02950404]
[1757439648503,7.7,214.46,214.4,2.53611762]
[1757439648999,7.7,214.54,214.42,9.90611762]
[1757439649205,7.7,214.5,214.43,2.53611762]
[1757439649502,7.7,214.5,214.44,0.03017232]
[1757439650093,2.53611762,214.49,214.44,0.03017232]
[1757439650407,7.7,214.48,214.44,0.03017232]
[1757439650600,2.53611762,214.49,214.44,0.03017232]
[1757439650906,7.7,214.48,214.44,0.03017232]
[1757439651099,2.53611762,214.49,214.44,0.03017232]
[1757439651307,7.7,214.48,214.44,0.03017232]
[1757439651808,2.53611762,214.49,214.44,0.03017232]
[1757439652497,7.7,214.48,214.44,0.03017232]
[1757439652696,7.7,214.5,214.44,0.03017232]
[1757439653804,2.53611762,214.49,214.44,0.03017232]
[1757439654710,7.7,214.48,214.44,0.03017232]
[1757439655307,2.53611762,214.49,214.44,0.03017232]
[1757439655707,7.7,214.48,214.44,0.03017232]
[1757439656108,2.53611762,214.49,214.44,0.03017232]
[1757439656311,7.7,214.48,214.44,0.03017232]
[1757439656510,2.53611762,214.49,214.44,0.03017232]
[1757439656713,7.7,214.48,214.44,0.03017232]
[1757439657013,7.7,214.52,214.44,0.03017232]
[1757439657204,2.53611762,214.5,214.44,0.03017232]
[1757439657607,10.23611762,214.5,214.44,0.03017232]
[1757439666111,7.7,214.5,214.44,0.03017232]
[1757439666311,7.7,214.51,214.45,2.53611762]
[1757439667017,7.7,214.51,214.46,0.03469698]
[1757439670416,2.53611762,214.52,214.46,0.03469698]
[1757439670718,7.7,214.51,214.46,0.03469698]
[1757439671418,2.53611762,214.52,214.46,0.03469698]
[1757439671612,7.7,214.51,214.46,0.03469698]
[1757439672009,2.53611762,214.52,214.46,0.03469698]
[1757439672214,7.7,214.51,214.46,0.03469698]
[1757439672820,2.53611762,214.52,214.46,0.03469698]
[1757439673320,7.7,214.51,214.46,0.03469698]
[1757439673516,2.53611762,214.52,214.46,0.03469698]
[1757439673915,7.73,214.51,214.46,0.03469698]
[1757439674215,2.53611762,214.52,214.46,0.03469698]
[1757439674520,7.73,214.52,214.46,0.03469698]
[1757439676819,7.73,214.5,214.46,0.03469698]
[1757439677826,2.53611762,214.51,214.46,0.03469698]
[1757439678430,7.73,214.5,214.46,0.03469698]
[1757439681735,53.28728728,214.51,214.46,0.03469698]
[1757439682240,7.73,214.5,214.46,0.03469698]
[1757439683437,53.28728728,214.51,214.46,0.03469698]
[1757439683634,7.73,214.5,214.46,0.03469698]
[1757439684337,48.05611762,214.51,214.46,0.03469698]
[1757439684534,7.73,214.5,214.46,0.03469698]
[1757439685831,2.53611762,214.49,214.46,0.03469698]
[1757439686138,7.73,214.48,214.46,0.03469698]
[1757439686438,2.53611762,214.49,214.46,0.03469698]
[1757439687140,7.73,214.48,214.46,0.03469698]
[1757439687344,2.53611762,214.49,214.46,0.03469698]
[1757439687535,7.73,214.48,214.46,0.03469698]
[1757439687938,2.53611762,214.49,214.46,0.03469698]
[1757439688541,7.73,214.48,214.46,0.03469698]
[1757439688742,2.53611762,214.49,214.46,0.03469698]
[1757439688941,7.73,214.48,214.46,0.03469698]
[1757439689138,2.53611762,214.49,214.46,0.03469698]
[1757439689442,7.73,214.48,214.46,0.03469698]
[1757439690140,2.53611762,214.49,214.46,0.03469698]
[1757439690343,81.14,214.52,214.46,0.03469698]
[1757439690544,7.73,214.51,214.46,0.03469698]
[1757439692345,3.95910823,214.5,214.46,0.03469698]
[1757439692642,3.95910823,214.47,214.34,11.49614782]
[1757439692846,3.95910823,214.47,214.33,3.95910823]
[1757439692847,7.73,214.46,214.36,7.57]
[1757439693639,0.03406303,214.43,214.36,7.57]
[1757439693942,7.73,214.42,214.36,7.57]
[1757439694647,0.03406303,214.43,214.37,0.03504763]
[1757439694844,7.73,214.42,214.37,0.03504763]
[1757439695545,0.03406303,214.43,214.37,0.03504763]
[1757439695948,7.73,214.42,214.37,0.03504763]
[1757439696540,7.76406303,214.43,214.37,7.60504763]
[1757439699351,0.03406303,214.43,214.37,7.60504763]
[1757439702956,0.03406303,214.43,214.42,11.52910823]
[1757439703150,7.73,214.54,214.43,7.57]
[1757439703353,7.73,214.54,214.47,7.57]
[1757439704456,7.01,214.58,214.49,7.23]
[1757439705257,7.01,214.58,214.51,0.03297491]
[1757439711463,5.23116966,214.63,214.52,7.23]
[1757439711657,7.01,214.62,214.52,7.23]
[1757439712163,7.01,214.62,214.55,0.03562516]
[1757439712565,7.01,214.62,214.54,7.23]
[1757439712759,7.01,214.62,214.56,0.03581754]
[1757439715460,7.01,214.67,214.57,7.23]
[1757439716066,7.01,214.67,214.6,0.03422647]
[1757439719867,7.01,214.74,214.61,7.23]
[1757439720164,317.35910823,214.75,214.61,7.23]
[1757439720165,7.01,214.71,214.61,7.23]
[1757439720665,7.01,214.71,214.65,0.03584006]
[1757439726275,7.01,214.76,214.66,7.23]
[1757439726870,7.01,214.76,214.69,0.03344496]
[1757439737483,7.01,214.76,214.69,7.41344496]
[1757439739988,3.95910823,214.84,214.71,7.38]
[1757439740189,35.27,214.83,214.71,7.38]
[1757439740586,35.27,214.83,214.75,0.0329674]
[1757439741295,7.25,214.83,214.75,0.0329674]
[1757439747493,7.25,214.83,214.76,7.38]
[1757439752497,7.25,214.83,214.77,2.52576071]
[1757439754394,7.25,214.87,214.81,2.52576071]
[1757439755101,7.25,214.87,214.82,0.03010077]
[1757439755297,428.12,214.88,214.82,0.03010077]
[1757439755490,7.25,214.87,214.82,0.03010077]
[1757439756002,428.12,214.88,214.82,0.03010077]
[1757439756199,7.25,214.87,214.82,0.03010077]
[1757439756701,428.12,214.88,214.82,0.03010077]
[1757439757698,7.25,214.87,214.82,0.03010077]
[1757439757998,428.12,214.88,214.82,0.03010077]
[1757439758998,7.25,214.87,214.82,0.03010077]
[1757439759199,9.77576071,214.87,214.82,0.03010077]
[1757439759600,2.52576071,214.87,214.82,0.03010077]
[1757439759797,2.52576071,214.92,214.84,2.52576071]
[1757439760002,7.25,214.91,214.84,2.52576071]
[1757439760402,7.25,214.91,214.85,0.03217974]
[1757439762208,9.77576071,214.86,214.85,0.03217974]
[1757439763500,7.25,214.86,214.85,0.03217974]
[1757439763700,9.77576071,214.86,214.85,0.03217974]
[1757439764095,7.25,214.86,214.85,0.03217974]
[1757439764295,9.77576071,214.86,214.85,0.03217974]
[1757439764696,7.25,214.86,214.85,0.03217974]
[1757439764896,122.07,214.86,214.85,0.03217974]
[1757439765503,124.59576071,214.86,214.85,0.03217974]
[1757439766509,122.07,214.86,214.85,0.03217974]
[1757439766714,124.59576071,214.86,214.85,0.03217974]
[1757439767905,122.07,214.86,214.85,0.03217974]
[1757439768109,124.59576071,214.86,214.85,0.03217974]
[1757439771404,122.07,214.86,214.85,0.03217974]
[1757439771604,124.59576071,214.86,214.85,0.03217974]
[1757439773909,129.82693037,214.86,214.73,7.49]
[1757439774111,7.74,214.8,214.73,7.49]
[1757439774310,7.74,214.8,214.75,7.49]
[1757439774311,114.8,214.79,214.75,7.49]
[1757439774508,114.8,214.79,214.74,2.52576071]
[1757439775309,114.83210856,214.79,214.75,7.49]
[1757439775509,114.83210856,214.79,214.74,2.52576071]
[1757439776708,114.83210856,214.79,214.75,7.49]
[1757439776910,114.83210856,214.79,214.74,2.52576071]
[1757439777104,114.83210856,214.79,214.75,7.49]
[1757439777306,114.83210856,214.79,214.74,2.52576071]
[1757439778213,122.57210856,214.79,214.75,7.49]
[1757439778409,122.57210856,214.79,214.74,2.52576071]
[1757439778612,0.03210856,214.79,214.75,7.49]
[1757439778816,0.03210856,214.79,214.74,2.52576071]
[1757439779419,0.03210856,214.79,214.76,2.52576071]
[1757439779816,114.8,214.81,214.77,7.49]
[1757439780019,0.03406991,214.8,214.76,2.52576071]
[1757439780415,0.03406991,214.8,214.77,7.49]
[1757439780620,0.03406991,214.8,214.76,2.52576071]
[1757439780822,0.03406991,214.8,214.77,7.49]
[1757439781121,0.03406991,214.8,214.76,2.52576071]
[1757439781612,0.03406991,214.8,214.77,7.49]
[1757439782014,0.03406991,214.8,214.76,2.52576071]
[1757439782213,0.03406991,214.8,214.78,2.52576071]
[1757439782418,0.03406991,214.8,214.79,7.49]
[1757439783212,0.03406991,214.8,214.77,7.49]
[1757439783619,7.77406991,214.8,214.77,7.49]
[1757439783815,7.77406991,214.8,214.76,7.49]
[1757439784315,0.03406991,214.8,214.78,7.49]
[1757439786921,0.03406991,214.8,214.75,7.49]
[1757439787117,0.03406991,214.8,214.73,2.52576071]
[1757439787118,7.74,214.79,214.74,7.49]
[1757439787320,0.03406991,214.8,214.75,2.52576071]
[1757439787518,0.03406991,214.8,214.77,2.52576071]
[1757439787718,117.30576071,214.84,214.78,7.49]
[1757439789628,7.74,214.81,214.75,10.01576071]
[1757439789924,7.74,214.81,214.75,7.49]
[1757439795626,0.02943013,214.8,214.74,9.84576071]
[1757439796326,7.56,214.79,214.74,7.32]
[1757439796528,10.11519084,214.8,214.74,7.32]
[1757439796724,10.11519084,214.8,214.74,9.84576071]
[1757439797126,7.56,214.79,214.73,2.52576071]
[1757439797330,7.56,214.79,214.73,9.84576071]
[1757439798528,7.56,214.79,214.73,7.32]
[1757439800130,10.08576071,214.79,214.73,7.32]
[1757439801132,2.52576071,214.77,214.7,7.32]
[1757439801332,0.02943013,214.8,214.64,5.23486376]
[1757439801333,7.56,214.74,214.66,7.32]
[1757439801635,7.56,214.74,214.66,9.84576071]
[1757439804532,7.56,214.74,214.66,7.32]
[1757439804832,7.56,214.74,214.67,2.52576071]
[1757439805330,7.56,214.78,214.72,7.32]
[1757439805725,7.56,214.78,214.73,2.52576071]
[1757439806035,7.56,214.78,214.68,3.90221314]
[1757439806036,7.56,214.78,214.69,7.32]
[1757439806235,7.56,214.78,214.72,9.84576071]
[1757439806632,21.78,214.84,214.68,3.90221314]
[1757439806932,0.0294624,214.77,214.76,2.52576071]
[1757439807132,0.0294624,214.77,214.76,9.84576071]
[1757439807331,7.56,214.83,214.76,9.84576071]
[1757439810538,7.56,214.77,214.71,9.84576071]
[1757439810741,7.56,214.77,214.71,7.32]
[1757439811737,7.56,214.75,214.66,7.32]
[1757439811938,7.56,214.75,214.67,2.52576071]
[1757439812340,7.56,214.75,214.66,7.32]
[1757439813443,11.51018896,214.75,214.66,7.32]
[1757439813944,7.56,214.75,214.66,7.32]
[1757439815645,5.23116966,214.79,214.66,7.32]
[1757439815840,7.56,214.81,214.72,7.32]
[1757439824558,7.56,214.81,214.75,7.16]
[1757439828259,0.02932965,214.8,214.75,7.16]
[1757439828459,7.54,214.79,214.75,7.16]
[1757439829255,0.02932965,214.8,214.75,7.16]
[1757439829455,7.54,214.79,214.72,3.95018896]
[1757439833562,7.54,214.79,214.73,7.16]
[1757439837159,7.54,214.79,214.69,7.16]
[1757439837664,0.02975727,214.76,214.69,7.16]
[1757439837964,7.56975727,214.76,214.69,7.16]
[1757439838564,7.56975727,214.76,214.66,7.16]
[1757439850967,0.02975727,214.76,214.68,7.16]
[1757439851174,0.02975727,214.76,214.71,7.16]
[1757439852174,0.02975727,214.76,214.69,3.90221314]
[1757439852478,7.54,214.75,214.68,7.16]
[1757439853181,7.54,214.75,214.65,7.16]
[1757439855080,7.54,214.75,214.64,7.8524021]
[1757439855285,7.54,214.75,214.65,7.17]
[1757439856680,7.54,214.75,214.66,7.17]
[1757439856881,7.54,214.75,214.67,3.95018896]
[1757439857075,0.0299238,214.72,214.68,7.17]
[1757439858182,0.0299238,214.72,214.71,7.17]
[1757439858983,7.25,214.79,214.71,7.17]
[1757439859186,5.23116966,214.86,214.73,3.95018896]
[1757439859484,7.25,214.85,214.74,7.17]
[1757439860685,7.25,214.85,214.77,0.03050915]
[1757439867893,11.20018896,214.85,214.77,0.03050915]
[1757439870600,121.93,214.85,214.77,0.03050915]
[1757439870894,7.25,214.85,214.77,0.03050915]
[1757439871096,7.25,214.85,214.78,7.17]
[1757439871688,7.25,214.85,214.77,0.03050915]
[1757439875601,7.25,214.83,214.77,0.03050915]
[1757439876907,7.25,214.83,214.78,2.52584618]
[1757439877206,7.25,214.83,214.79,7.17]
[1757439877407,7.25,214.85,214.79,7.17]
[1757439881103,9.77584618,214.85,214.79,7.17]
[1757439881310,9.77584618,214.85,214.78,2.52584618]
[1757439881504,9.77584618,214.85,214.77,0.03050915]
[1757439881698,7.25,214.83,214.77,0.03050915]
[1757439883601,7.24,214.81,214.77,0.03050915]
[1757439883910,2.52584618,214.82,214.77,0.03050915]
[1757439884105,7.24,214.81,214.77,0.03050915]
[1757439884506,2.52584618,214.82,214.77,0.03050915]
[1757439884903,7.24,214.85,214.77,0.03050915]
[1757439885103,2.52584618,214.83,214.77,0.03050915]
[1757439885611,7.24,214.82,214.77,0.03050915]
[1757439886309,2.52584618,214.83,214.77,0.03050915]
[1757439887301,7.24,214.82,214.77,0.03050915]
[1757439887502,2.52584618,214.83,214.77,0.03050915]
[1757439887698,7.24,214.82,214.77,0.03050915]
[1757439888098,2.52584618,214.83,214.77,0.03050915]
[1757439888502,7.24,214.82,214.77,0.03050915]
[1757439888808,2.52584618,214.83,214.77,0.03050915]
[1757439889010,7.24,214.82,214.77,0.03050915]
[1757439889309,2.52584618,214.83,214.77,0.03050915]
[1757439889608,7.24,214.82,214.77,0.03050915]
[1757439890006,2.52584618,214.83,214.77,0.03050915]
[1757439890206,7.24,214.82,214.77,0.03050915]
[1757439890610,2.52584618,214.83,214.77,0.03050915]
[1757439891000,7.24,214.82,214.77,0.03050915]
[1757439891209,2.52584618,214.83,214.77,0.03050915]
[1757439891410,7.24,214.82,214.77,0.03050915]
[1757439891602,2.52584618,214.83,214.77,0.03050915]
[1757439891805,7.24,214.82,214.78,7.46]
[1757439892006,7.24,214.83,214.78,7.46]
[1757439892299,2.52584618,214.84,214.78,7.46]
[1757439892499,7.24,214.81,214.77,0.03050915]
[1757439892709,2.52584618,214.82,214.77,0.03050915]
[1757439893209,7.24,214.81,214.77,0.03050915]
[1757439893509,2.52584618,214.82,214.77,0.03050915]
[1757439893906,7.24,214.81,214.77,0.03050915]
[1757439894108,2.52584618,214.82,214.77,0.03050915]
[1757439894312,7.24,214.81,214.77,0.03050915]
[1757439894712,2.52584618,214.82,214.77,0.03050915]
[1757439895609,7.24,214.81,214.77,0.03050915]
[1757439895912,2.52584618,214.82,214.77,0.03050915]
[1757439896608,7.24,214.81,214.77,0.03050915]
[1757439896811,2.52584618,214.82,214.77,0.03050915]
[1757439897310,7.24,214.81,214.77,0.03050915]
[1757439897504,2.52584618,214.82,214.77,0.03050915]
[1757439898208,7.24,214.81,214.77,0.03050915]
[1757439898912,2.52584618,214.82,214.77,0.03050915]
[1757439899605,7.24,214.81,214.77,0.03050915]
[1757439900316,2.52584618,214.78,214.77,0.03050915]
[1757439900512,9.76584618,214.78,214.77,0.03050915]
[1757439903319,2.52584618,214.82,214.77,0.03050915]
[1757439903517,7.24,214.81,214.77,0.03050915]
[1757439903722,2.52584618,214.8,214.77,0.03050915]
[1757439904216,7.24,214.79,214.77,0.03050915]
[1757439905210,2.52584618,214.8,214.77,0.03050915]
[1757439905609,7.24,214.79,214.77,0.03050915]
[1757439905819,9.76584618,214.78,214.77,0.03050915]
[1757439906822,7.24,214.78,214.77,0.03050915]
[1757439909822,9.76584618,214.78,214.77,0.03050915]
[1757439910022,7.24,214.78,214.77,0.03050915]
[1757439915320,2.52584618,214.81,214.77,0.03050915]
[1757439916123,6.99,214.8,214.77,0.03050915]
[1757439916324,6.99,214.79,214.77,0.03050915]
[1757439916719,2.52584618,214.81,214.77,0.03050915]
[1757439918223,6.99,214.84,214.78,10.02584618]
[1757439922122,6.99,214.84,214.78,7.5]
[1757439922822,6.99,214.84,214.77,2.55635533]
[1757439926233,6.99,214.84,214.78,7.5]
[1757439927131,6.99,214.84,214.79,2.52584618]
[1757439927433,6.99,214.85,214.79,2.52584618]
[1757439931133,7.75701584,214.88,214.8,7.5]
[1757439931336,6.99,214.88,214.82,7.5]
[1757439931635,6.99,214.88,214.81,2.52584618]
[1757439931636,9.51584618,214.88,214.83,0.03321479]
[1757439931837,6.99,214.85,214.83,0.03321479]
[1757439932136,2.52584618,214.86,214.83,0.03321479]
[1757439932338,9.51584618,214.84,214.83,0.03321479]
[1757439932837,9.51584618,214.84,214.74,7.5]
[1757439933033,6.99,214.8,214.74,7.5]
[1757439934035,0.03206682,214.79,214.73,10.02584618]
[1757439934636,0.03206682,214.79,214.73,2.52584618]
[1757439935242,0.03206682,214.79,214.75,2.52584618]
[1757439935835,0.03206682,214.79,214.71,7.5]
[1757439936036,7.02206682,214.79,214.74,2.52584618]
[1757439936343,7.02206682,214.79,214.72,7.5]
[1757439936843,0.03206682,214.79,214.72,7.5]
[1757439937938,0.03206682,214.79,214.74,3.94747009]
[1757439938137,0.03206682,214.79,214.75,7.5]
[1757439939346,0.03206682,214.79,214.78,7.5]
[1757439940048,6.99,214.86,214.78,7.5]
[1757439943051,3.94747009,214.92,214.78,7.5]
[1757439943245,3.94747009,214.92,214.77,3.94747009]
[1757439943246,6.99,214.91,214.81,7.5]
[1757439943451,6.99,214.91,214.83,3.94747009]
[1757439943653,6.99,214.91,214.84,7.5336187]
[1757439944152,6.99,214.91,214.84,0.0336187]
[1757439949159,6.99,214.91,214.84,7.1136187]
[1757439950958,33.5606532,215.35,214.84,7.1136187]
[1757439950959,9.17863975,215.0,214.87,3.94747009]
[1757439951164,109.34,214.99,214.88,7.08]
[1757439951568,109.34,214.99,214.91,0.03031525]
[1757439954164,7.32,214.99,214.91,0.03031525]
[1757439959664,7.32,214.99,214.92,7.08]
[1757439967070,7.32,214.99,214.91,0.03031525]
[1757439967270,11.26747009,214.99,214.91,0.03031525]
[1757439967475,7.32,214.95,214.91,0.03031525]
[1757439968173,3.94747009,214.96,214.91,0.03031525]
[1757439968569,0.80986735,215.02,214.91,0.03031525]
[1757439968771,32.74,215.01,214.91,0.03031525]
[1757439970072,7.32,214.98,214.91,0.03031525]
[1757439972672,7.32,214.98,214.92,7.08]
[1757439972879,7.32,215.06,214.92,7.08]
[1757439973073,7.32,215.06,214.94,3.94747009]
[1757439973673,7.32,215.06,214.98,0.0301684]
[1757439976176,7.32,215.06,214.99,7.4]
[1757439977582,7.32,215.06,214.98,0.0301684]
[1757439978882,7.45,215.0,214.98,0.0301684]
[1757439979180,7.45,215.0,214.88,7.4]
[1757439979181,7.45,215.0,214.84,11.34747009]
[1757439979375,3.94747009,214.98,214.84,11.34747009]
[1757439979572,7.45,214.97,214.84,11.34747009]
[1757439979776,7.45,214.97,214.85,7.4]
[1757439980280,0.02970926,214.93,214.85,7.4]
[1757439980482,7.47970926,214.93,214.85,7.4]
[1757439983387,7.45,214.92,214.8,7.4]
[1757439983580,7.45,214.92,214.8,11.34747009]
[1757439983884,0.03127766,214.88,214.81,7.4]
[1757439984786,7.48127766,214.88,214.81,7.4]
[1757439988489,7.48127766,214.88,214.77,11.34747009]
[1757439990090,7.48127766,214.88,214.78,7.4]
[1757439992583,0.03127766,214.88,214.81,7.4]
[1757439993089,0.03159979,214.87,214.81,7.4]
[1757439994882,7.45,214.86,214.81,7.4]
[1757439995085,0.03159979,214.87,214.81,7.4]
[1757439995591,7.45,214.86,214.77,11.34747009]
[1757439998490,9.9753455,214.86,214.78,2.5253455]
[1757439999096,0.03159979,214.87,214.85,2.5253455]
[1757439999296,0.03159979,214.87,214.86,7.4]
[1757439999589,7.45,214.9,214.86,7.4]
[1757439999795,0.03535929,214.89,214.86,7.4]
[1757440000293,0.03535929,214.89,214.87,2.5253455]
[1757440000590,0.03535929,214.89,214.88,7.4]
[1757440001186,0.03535929,214.89,214.88,7.86]
[1757440001382,69.4089112,215.01,214.88,7.86]
[1757440001582,69.4089112,215.01,214.93,2.5253455]
[1757440002591,69.4089112,215.01,214.95,0.03499213]
[1757440003896,9.9753455,215.02,214.95,0.03499213]
[1757440005193,7.45,215.02,214.95,2.56033763]
[1757440005398,7.45,215.02,214.98,2.5253455]
[1757440005585,312.72,215.05,214.99,7.05]
[1757440006085,312.72,215.05,215.0,0.0357154]
[1757440006291,7.37,215.04,215.0,0.0357154]
[1757440006689,312.72,215.05,215.0,0.0357154]
[1757440007295,7.37,215.04,215.0,0.0357154]
[1757440009197,312.72,215.05,215.0,0.0357154]
[1757440009500,7.37,215.04,215.0,0.0357154]
[1757440010588,312.72,215.05,215.0,0.0357154]
[1757440011193,7.37,215.04,215.0,0.0357154]
[1757440011898,312.72,215.05,215.0,0.0357154]
[1757440012098,7.37,215.04,215.0,0.0357154]
[1757440012296,312.72,215.05,215.0,0.0357154]
[1757440012497,7.37,215.04,215.0,0.0357154]
[1757440012690,2.5253455,215.02,215.0,0.0357154]
[1757440012893,7.37,215.01,215.0,0.0357154]
[1757440017802,7.83,215.01,215.0,0.0357154]
[1757440018510,10.3553455,215.01,215.0,0.0357154]
[1757440022408,9.8953455,215.01,215.0,0.0357154]